bitfinex-derivatives/quotes_ETHF0:USTF0_20240907
["timestamp","ask_amount","ask_price","bid_price","bid_amount"]
[1725727874791,0.4515,2290.9,2290.7,0.9585]
[1725727875585,0.88803,2290.9,2290.7,0.9585]
[1725727875788,0.4515,2290.9,2290.7,0.9585]
[1725727876793,0.88803,2290.9,2290.7,0.9585]
[1725727877195,0.88803,2290.9,2290.3,0.4559]
[1725727877196,0.43659,2290.6,2290.3,0.4559]
[1725727877499,0.4775,2290.5,2290.3,0.4559]
[1725727877687,0.4775,2290.5,2290.3,0.89254]
[1725727877889,0.4775,2290.5,2290.3,0.4559]
[1725727878592,0.4775,2290.5,2290.2,0.462]
[1725727878797,0.91412,2290.5,2290.2,0.9375]
[1725727879001,0.43662,2290.4,2290.2,0.9375]
[1725727879496,0.91412,2290.5,2290.2,0.9375]
[1725727879802,0.43662,2290.4,2290.2,0.9375]
[1725727879997,0.43662,2290.4,2290.2,0.462]
[1725727880391,0.91412,2290.5,2290.2,0.462]
[1725727881999,0.4775,2290.5,2290.2,0.462]
[1725727882301,0.43655,2290.8,2290.4,0.43661]
[1725727882494,0.43657,2290.7,2290.3,3.64443]
[1725727883004,0.43663,2290.4,2290.2,0.462]
[1725727883200,0.4421,2290.6,2290.2,0.462]
[1725727883500,0.43664,2290.3,2290.2,0.462]
[1725727884006,0.4367,2290.1,2289.7,1.77013841]
[1725727884193,0.43667,2290.2,2289.8,0.87793]
[1725727884390,3.02,2290.4,2289.8,1.34513]
[1725727884700,0.4398,2290.1,2289.8,1.34513]
[1725727886012,0.43665,2290.3,2289.9,0.43672]
[1725727886196,0.43665,2290.3,2289.8,0.9084]
[1725727886197,0.4398,2290.3,2290.0,0.43669]
[1725727886397,0.4398,2290.3,2290.1,0.4421]
[1725727887298,0.87644,2290.3,2290.2,0.482]
[1725727887492,0.87644,2290.3,2290.1,0.4421]
[1725727888293,0.87644,2290.3,2290.0,0.9187]
[1725727888498,0.4398,2290.3,2290.0,1.3887]
[1725727888700,0.87645,2290.3,2290.0,0.952]
[1725727888899,0.87645,2290.3,2290.0,1.3887]
[1725727889295,0.4398,2290.3,2290.0,1.3887]
[1725727889797,0.87644,2290.3,2290.0,1.3887]
[1725727890104,0.43662,2290.5,2290.1,0.43667]
[1725727890302,7.129,2290.6,2290.1,0.43667]
[1725727890505,0.43662,2290.4,2290.1,0.43667]
[1725727893503,0.43662,2290.5,2290.2,0.43666]
[1725727893702,4.109,2290.6,2290.3,0.4458]
[1725727893903,0.43662,2290.5,2290.3,0.4458]
[1725727894106,0.43662,2290.4,2290.3,0.4458]
[1725727895507,0.43662,2290.4,2290.1,0.43668]
[1725727895707,0.43662,2290.4,2290.1,0.91008]
[1725727895910,0.43662,2290.4,2290.1,0.4734]
[1725727896210,0.91354,2290.3,2290.1,0.4734]
[1725727896405,0.43666,2290.2,2289.8,3.64452]
[1725727896612,0.43666,2290.2,2289.8,4.59712]
[1725727897311,4.12135,2290.3,2289.9,0.43671]
[1725727897612,0.43668,2290.2,2289.8,4.1604]
[1725727897801,4.12135,2290.3,2289.9,0.43671]
[1725727898501,0.4769,2290.3,2290.0,0.4367]
[1725727898901,0.4769,2290.3,2290.1,0.4643]
[1725727899302,0.4769,2290.3,2290.2,0.4515]
[1725727901010,0.91354,2290.3,2290.2,0.4515]
[1725727902112,0.4769,2290.3,2290.2,0.4515]
[1725727902904,0.4769,2290.3,2290.1,0.4643]
[1725727902905,0.91354,2290.3,2290.1,0.4643]
[1725727903504,0.91354,2290.3,2289.9,1.39591]
[1725727904110,0.43669,2290.1,2289.8,0.4734]
[1725727904312,0.43668,2290.1,2289.8,0.4734]
[1725727904510,0.4469,2290.2,2289.8,0.4734]
[1725727904511,0.4367,2290.0,2289.8,0.4734]
[1725727904707,0.89089,2290.1,2289.8,0.91013]
[1725727907321,0.4542,2290.1,2289.8,0.91013]
[1725727907509,0.88357,2290.2,2289.9,0.43671]
[1725727907510,0.43667,2290.2,2289.9,0.43671]
[1725727907709,0.43667,2290.2,2290.0,0.459]
[1725727908011,0.43668,2290.1,2289.8,4.11792]
[1725727908218,0.43668,2290.1,2289.8,1.36912]
[1725727910417,0.43669,2290.1,2289.8,0.9324]
[1725727910604,0.43669,2290.1,2289.8,1.36913]
[1725727911718,0.43669,2290.1,2289.8,0.9324]
[1725727911914,0.43669,2290.1,2289.8,1.36914]
[1725727913215,0.43667,2290.2,2289.8,1.36914]
[1725727913421,0.43667,2290.2,2289.9,0.43671]
[1725727913616,0.43667,2290.2,2289.8,0.9324]
[1725727913617,0.4769,2290.3,2289.8,0.9324]
[1725727913829,0.4769,2290.3,2290.0,0.43669]
[1725727914121,0.43667,2290.2,2289.8,2.51134972]
[1725727915113,0.43667,2290.2,2289.8,1.36912]
[1725727915512,0.43667,2290.2,2289.8,2.51134972]
[1725727916412,0.43667,2290.2,2289.8,1.36912]
[1725727918814,0.43667,2290.2,2289.9,0.43672]
[1725727919614,0.43668,2290.1,2289.9,0.43672]
[1725727919814,0.43667,2290.2,2289.9,0.43672]
[1725727920213,0.43669,2290.1,2289.8,4.1402]
[1725727920523,0.43668,2290.1,2289.8,1.36913]
[1725727920826,0.43672,2289.9,2289.8,0.4734]
[1725727921227,1.7281,2290.1,2289.8,0.4734]
[1725727921530,0.4367,2290.0,2289.8,0.4734]
[1725727922226,0.945,2290.3,2289.8,0.4734]
[1725727922525,0.91355,2290.3,2290.0,0.43669]
[1725727922725,0.91355,2290.3,2290.1,0.4864]
[1725727922920,4.4678,2290.4,2290.2,0.4826]
[1725727923123,4.90443,2290.4,2290.2,0.4826]
[1725727923320,0.43664,2290.3,2290.2,0.4826]
[1725727923821,0.43666,2290.2,2290.1,0.4545]
[1725727926726,0.43668,2290.1,2289.9,0.969]
[1725727926922,0.89609,2290.1,2289.9,0.969]
[1725727930524,0.4367,2290.0,2289.9,0.4826]
[1725727932226,13.575,2290.0,2289.6,1.14222972]
[1725727932530,13.575,2290.0,2289.4,3.61118468]
[1725727932531,4.29971,2289.7,2289.2,1.14222972]
[1725727932821,4.29971,2289.7,2289.1,1.33338841]
[1725727932822,0.43685,2289.2,2289.1,1.33338841]
[1725727933028,6.2278,2289.3,2288.9,1.3468]
[1725727933330,0.43688,2289.1,2288.9,1.3468]
[1725727933528,0.90526,2289.2,2288.9,1.3468]
[1725727935322,0.43687,2289.1,2288.9,1.3468]
[1725727935930,3.92559,2289.6,2289.2,0.43684]
[1725727936124,0.43677,2289.7,2289.3,1.79182]
[1725727936428,0.43677,2289.7,2289.4,0.43681]
[1725727936624,3.45675,2289.8,2289.4,0.4368]
[1725727936830,0.91813,2289.9,2289.5,0.43678]
[1725727937525,0.43674,2289.8,2289.4,0.4368]
[1725727937733,0.43674,2289.8,2289.3,1.355]
[1725727938232,0.43674,2289.8,2289.5,0.43679]
[1725727938528,0.43674,2289.8,2289.4,0.4368]
[1725727939534,0.43674,2289.8,2289.3,1.355]
[1725727939731,0.43674,2289.8,2289.5,0.43679]
[1725727939926,0.43674,2289.8,2289.4,0.4368]
[1725727940128,0.43674,2289.8,2289.5,0.43679]
[1725727940426,0.4814,2289.9,2289.5,0.43678]
[1725727940427,0.91813,2289.9,2289.5,0.43678]
[1725727940623,3.2078,2290.1,2289.8,0.43672]
[1725727940825,3.64448,2290.1,2289.9,1.3685]
[1725727942527,3.2078,2290.1,2289.9,1.3685]
[1725727942829,3.64449,2290.1,2289.9,1.3685]
[1725727944937,0.4367,2290.0,2289.9,1.3685]
[1725727945530,3.64449,2290.1,2289.9,1.3685]
[1725727947133,3.2078,2290.1,2289.9,1.3685]
[1725727947333,3.2078,2290.1,2289.9,1.80521]
[1725727947541,3.2078,2290.1,2289.9,1.3685]
[1725727948027,3.64448,2290.1,2289.9,1.3685]
[1725727949234,0.4676,2290.0,2289.9,1.3685]
[1725727953839,0.43667,2290.2,2289.9,1.3685]
[1725727954035,0.90977,2290.2,2289.9,1.3685]
[1725727955234,0.90976,2290.2,2289.9,1.3685]
[1725727955739,0.43668,2290.1,2289.9,1.3685]
[1725727955939,0.4731,2290.2,2289.9,1.3685]
[1725727956541,0.43669,2290.1,2289.9,1.3685]
[1725727957244,0.90978,2290.2,2289.9,1.3685]
[1725727958142,0.43668,2290.1,2289.9,1.3685]
[1725727960937,0.90977,2290.2,2289.9,1.3685]
[1725727961940,0.43668,2290.1,2289.9,1.3685]
[1725727962947,2.16977,2290.2,2289.9,1.3685]
[1725727964351,1.7331,2290.2,2289.9,1.80522]
[1725727964845,2.16976,2290.2,2289.9,1.80522]
[1725727965644,0.43668,2290.1,2289.9,1.3685]
[1725727966945,2.16977,2290.2,2289.9,1.80522]
[1725727967149,0.43668,2290.1,2289.9,1.3685]
[1725727967339,2.16977,2290.2,2289.9,1.80521]
[1725727969249,3.64446,2290.3,2290.0,0.43669]
[1725727969448,0.43666,2290.2,2290.0,0.43669]
[1725727969650,0.43666,2290.2,2289.9,1.80521]
[1725727970947,0.43666,2290.2,2289.9,1.8052]
[1725727971145,0.43666,2290.2,2290.0,0.4367]
[1725727971942,3.64445,2290.3,2290.0,0.4367]
[1725727977859,0.43669,2290.1,2289.9,1.3685]
[1725727982155,0.43667,2290.2,2289.9,1.80522]
[1725727982657,3.2078,2290.3,2290.2,0.43666]
[1725727982862,4.50375969,2290.7,2290.2,0.43666]
[1725727982863,7.17765623,2291.0,2290.6,0.43658]
[1725727983048,0.43653,2290.9,2290.7,0.8957]
[1725727983252,0.43653,2290.9,2290.7,1.3356]
[1725727983660,4.90432,2291.0,2290.7,1.3356]
[1725727984163,0.43653,2290.9,2290.7,1.3356]
[1725727984356,1.26,2291.0,2290.7,1.3356]
[1725727984662,0.43653,2290.9,2290.7,1.3356]
[1725727984851,0.43655,2290.8,2290.7,1.3356]
[1725727985046,0.43655,2290.8,2290.7,0.4399]
[1725727988970,0.43653,2290.9,2290.7,0.4399]
[1725727989167,1.69651,2291.0,2290.7,0.4399]
[1725727989969,0.43654,2290.9,2290.7,0.4399]
[1725727990166,1.26,2291.0,2290.7,0.4399]
[1725727990167,0.43655,2290.8,2290.7,0.4399]
[1725727990468,0.43655,2290.8,2290.5,4.1313]
[1725727990665,0.4736,2290.7,2290.5,4.5834]
[1725727990961,0.4736,2290.7,2290.5,5.02]
[1725727991665,0.4736,2290.7,2290.5,4.5834]
[1725727991863,0.4736,2290.7,2290.5,5.02]
[1725727992063,0.4736,2290.7,2290.5,1.8122]
[1725727995761,0.4736,2290.7,2290.5,1.81219]
[1725727997474,0.4736,2290.7,2290.5,1.3756]
[1725727997861,0.4736,2290.7,2290.5,1.8122]
[1725727999762,0.43658,2290.6,2290.5,0.4521]
[1725728000360,5.03438,2290.7,2290.5,0.4521]
[1725728002068,1.82658,2290.7,2290.5,0.4521]
[1725728008461,0.43658,2290.6,2290.3,0.9308]
[1725728008667,0.43658,2290.6,2290.3,1.3854]
[1725728008973,1.39,2290.7,2290.3,1.82204]
[1725728008974,1.82658,2290.7,2290.3,1.82204]
[1725728009169,1.82658,2290.7,2290.4,0.43662]
[1725728010769,0.43659,2290.6,2290.3,1.3854]
[1725728011170,0.43659,2290.6,2290.3,1.82204]
[1725728012873,1.82658,2290.7,2290.3,1.82204]
[1725728013685,0.43658,2290.6,2290.3,1.82204]
[1725728014469,1.39,2290.7,2290.3,1.3854]
[1725728014875,0.4366,2290.6,2290.3,1.82204]
[1725728015676,1.39,2290.7,2290.3,1.3854]
[1725728015677,0.43661,2290.5,2290.3,1.3854]
[1725728015879,0.4366,2290.6,2290.3,1.3854]
[1725728016777,0.43659,2290.6,2290.3,1.3854]
[1725728017176,0.43659,2290.6,2290.3,1.82204]
[1725728018279,1.82658,2290.7,2290.3,1.82204]
[1725728018779,0.43658,2290.6,2290.3,1.82204]
[1725728020768,0.91017,2290.7,2290.5,0.4366]
[1725728020969,0.43649,2291.1,2290.6,0.4731]
[1725728021273,0.4851,2291.0,2290.7,0.90185]
[1725728021468,0.92162,2291.0,2290.8,0.4795]
[1725728024885,0.43653,2290.9,2290.7,0.4653]
[1725728025185,0.92162,2291.0,2290.7,0.4653]
[1725728026676,0.43653,2290.9,2290.7,0.4653]
[1725728027783,0.92162,2291.0,2290.7,0.4653]
[1725728033280,0.92162,2291.0,2290.7,0.90186]
[1725728035185,0.43649,2291.1,2290.8,0.43654]
[1725728035384,0.4872,2291.3,2290.9,0.4668]
[1725728035582,0.43648,2291.2,2291.0,0.461]
[1725728035981,0.43649,2291.1,2291.0,0.461]
[1725728036177,0.43648,2291.2,2291.0,0.461]
[1725728037184,0.43649,2291.1,2291.0,0.461]
[1725728037375,0.43648,2291.2,2291.0,0.461]
[1725728043688,0.43649,2291.1,2291.0,0.461]
[1725728046987,0.9372,2291.3,2291.0,0.461]
[1725728046988,0.43648,2291.2,2291.0,0.461]
[1725728047193,0.43642,2291.5,2291.2,0.43646]
[1725728047385,0.4522,2291.6,2291.1,2.16868]
[1725728047580,0.43643,2291.4,2291.2,0.455]
[1725728048286,0.43645,2291.3,2291.2,0.455]
[1725728048903,0.89395,2291.3,2291.2,0.455]
[1725728049786,0.89395,2291.3,2291.1,0.4722]
[1725728049991,0.43647,2291.2,2291.1,0.4722]
[1725728063204,5.6248,2291.2,2290.7,5.68341813]
[1725728063502,0.43655,2290.8,2290.7,4.1315]
[1725728064303,0.91014,2290.9,2290.7,4.1315]
[1725728065599,0.43655,2290.8,2290.7,4.1315]
[1725728065796,0.91014,2290.9,2290.7,4.1315]
[1725728067201,0.91014,2290.9,2290.7,0.9237]
[1725728068208,0.43655,2290.8,2290.7,0.9237]
[1725728072903,0.43662,2290.4,2290.3,1.33338841]
[1725728073113,1.0915,2290.6,2289.9,10.50421082]
[1725728073114,0.43666,2290.2,2290.1,1.3704]
[1725728073511,0.43665,2290.3,2290.1,1.3704]
[1725728074201,0.91996,2290.2,2290.1,0.924]
[1725728076501,0.91996,2290.2,2289.8,0.4683]
[1725728076502,0.43671,2290.0,2289.8,0.4683]
[1725728076705,0.43671,2290.0,2289.8,1.3683]
[1725728077510,0.43669,2290.1,2289.8,1.3683]
[1725728078812,0.43671,2290.0,2289.8,0.9]
[1725728079816,0.43669,2290.1,2289.8,0.9]
[1725728080812,3.2078,2290.2,2290.0,1.26]
[1725728081018,0.4851,2290.6,2290.1,2.18237]
[1725728081219,0.4851,2290.6,2290.2,0.9064]
[1725728081517,0.43664,2290.3,2290.2,0.9064]
[1725728082523,5.6264,2290.3,2289.7,1.33338841]
[1725728082817,0.43672,2289.9,2289.8,0.446]
[1725728083814,0.43671,2290.0,2289.8,0.446]
[1725728084014,0.43671,2290.0,2289.9,0.4869]
[1725728090928,0.4835,2290.4,2289.9,0.92361]
[1725728090929,0.43669,2290.1,2289.9,0.92361]
[1725728091130,0.43669,2290.1,2290.0,0.4681]
[1725728091624,0.43667,2290.2,2290.0,0.90479]
[1725728095228,0.43667,2290.2,2289.8,0.446]
[1725728095229,1.0918,2289.9,2289.8,0.446]
[1725728095534,0.43674,2289.8,2289.7,0.4424]
[1725728097332,0.87224,2289.8,2289.7,0.4424]
[1725728098329,0.43676,2289.7,2289.6,0.4683]
[1725728098535,1.52866,2289.7,2289.6,0.4683]
[1725728099128,0.43679,2289.5,2289.4,0.4524]
[1725728099337,0.43679,2289.5,2289.4,0.889]
[1725728104142,0.90279,2289.5,2289.4,0.889]
[1725728114845,0.43679,2289.5,2289.4,0.889]
[1725728117742,3.2078,2289.7,2289.4,5.257]
[1725728117947,0.43677,2289.7,2289.4,1.3258]
[1725728118156,0.43677,2289.7,2289.5,0.43679]
[1725728118449,0.43675,2289.8,2289.5,0.43679]
[1725728118752,0.43676,2289.7,2289.5,0.43679]
[1725728119754,0.43677,2289.6,2289.4,1.3258]
[1725728119945,0.43677,2289.7,2289.4,1.3258]
[1725728120343,0.43679,2289.5,2289.4,0.889]
[1725728122155,2.16119,2289.6,2289.4,0.889]
[1725728122347,0.43679,2289.5,2289.4,0.889]
[1725728122847,0.43679,2289.6,2289.4,5.257]
[1725728123052,0.43679,2289.5,2289.4,0.889]
[1725728123254,0.43679,2289.5,2289.4,5.257]
[1725728124847,0.43679,2289.5,2289.4,0.889]
[1725728126549,0.43679,2289.5,2289.4,0.4366]
[1725728126856,1.52878,2289.5,2289.4,0.4366]
[1725728127054,1.97368,2289.5,2289.4,0.4366]
[1725728127555,0.88169,2289.5,2289.4,0.4366]
[1725728128961,1.09214,2289.2,2288.8,1.33338841]
[1725728129157,1.69691,2288.9,2288.8,1.3788]
[1725728129545,1.69691,2288.9,2288.8,0.4585]
[1725728129546,9.27351,2288.9,2288.8,0.4585]
[1725728129748,0.43696,2288.7,2288.5,1.3788]
[1725728129950,1.26,2288.9,2288.5,0.9256]
[1725728129951,1.69697,2288.6,2288.5,0.9256]
[1725728130551,1.26,2288.6,2288.5,0.9256]
[1725728130755,1.69696,2288.7,2288.5,0.9256]
[1725728131050,0.43697,2288.6,2288.5,0.9256]
[1725728131850,3.64471,2288.9,2288.5,0.9256]
[1725728132358,3.2078,2288.9,2288.5,0.9256]
[1725728133357,1.26,2288.8,2288.5,0.9256]
[1725728134745,1.26,2288.8,2288.5,1.36258]
[1725728135149,1.26,2288.8,2288.5,0.9256]
[1725728135656,3.64472,2288.9,2288.5,1.36257]
[1725728136858,0.43693,2288.8,2288.5,1.36257]
[1725728139855,3.2078,2289.3,2288.6,8.8374]
[1725728140060,0.4369,2289.0,2288.7,0.88463]
[1725728140255,0.43693,2288.8,2288.7,0.4477]
[1725728140558,0.87182,2288.9,2288.7,0.4477]
[1725728142358,0.4349,2288.9,2288.7,0.4477]
[1725728142762,0.87181,2288.9,2288.7,0.4477]
[1725728143062,0.4349,2288.9,2288.7,0.4477]
[1725728143265,0.43697,2288.6,2288.5,0.4585]
[1725728146263,0.43699,2288.5,2288.3,0.4463]
[1725728146568,0.88909,2288.5,2288.3,0.9157]
[1725728147466,0.4521,2288.5,2288.1,0.43705]
[1725728147674,0.88909,2288.5,2288.3,0.4619]
[1725728148875,0.43699,2288.5,2288.3,0.4619]
[1725728149061,0.90949,2288.5,2288.3,0.4619]
[1725728149568,0.4725,2288.5,2288.3,0.4619]
[1725728150078,0.9095,2288.5,2288.3,0.4619]
[1725728151270,0.4725,2288.5,2288.3,0.4619]
[1725728151472,0.90949,2288.5,2288.3,0.4619]
[1725728152470,0.4725,2288.5,2288.3,0.4619]
[1725728152774,0.437,2288.4,2288.3,0.4619]
[1725728152965,1.697,2288.4,2288.3,0.4619]
[1725728153163,1.697,2288.4,2287.9,1.77047841]
[1725728153164,1.26,2288.4,2287.9,1.33338841]
[1725728153367,1.26,2288.2,2287.9,1.33338841]
[1725728153574,0.43705,2288.2,2287.9,1.33338841]
[1725728153876,0.4392,2288.1,2287.9,1.33338841]
[1725728154472,1.6992,2288.1,2287.9,1.33338841]
[1725728154976,2.13626,2288.1,2287.9,1.33338841]
[1725728155171,2.13626,2288.1,2287.8,0.8934]
[1725728155675,1.6992,2288.1,2287.8,0.8934]
[1725728156973,1.6992,2288.1,2287.9,0.4494]
[1725728157869,2.13626,2288.1,2287.9,0.4494]
[1725728158570,1.69709,2288.0,2287.4,1.33338841]
[1725728158869,1.26,2288.0,2287.7,0.43714]
[1725728159077,0.43699,2288.5,2287.9,1.26]
[1725728159263,1.69699,2288.5,2288.1,0.43705]
[1725728159471,0.43701,2288.4,2288.0,1.86937]
[1725728159776,1.69701,2288.4,2288.0,1.86937]
[1725728159966,1.26,2288.4,2288.0,1.4323]
[1725728160169,1.69705,2288.2,2288.0,1.4323]
[1725728160475,0.43706,2288.1,2288.0,1.4323]
[1725728161177,0.43706,2288.1,2288.0,0.952]
[1725728162076,1.69705,2288.2,2288.0,0.952]
[1725728162276,0.43706,2288.1,2288.0,0.952]
[1725728162878,0.4633,2288.3,2288.0,0.952]
[1725728163085,1.26,2288.1,2287.6,1.33338841]
[1725728163277,0.89679,2288.0,2287.7,1.3616]
[1725728163475,0.4597,2288.0,2287.7,1.3616]
[1725728163675,0.43711,2287.9,2287.7,1.3616]
[1725728163881,0.4597,2288.0,2287.7,1.3616]
[1725728164074,0.89679,2288.0,2287.7,1.3616]
[1725728164475,5.1263499,2289.4,2287.7,1.3616]
[1725728164476,3.2078,2288.5,2287.8,1.6971]
[1725728164680,0.43704,2288.3,2287.8,4.9049]
[1725728164974,0.43704,2288.2,2287.8,4.9049]
[1725728165169,0.43706,2288.1,2287.8,4.4678]
[1725728165377,2.13225,2288.2,2287.8,0.43712]
[1725728165875,2.13225,2288.2,2287.8,3.64492]
[1725728166277,2.13225,2288.2,2287.9,0.4371]
[1725728166278,1.6952,2288.2,2287.9,0.4371]
[1725728166579,1.69698,2288.5,2288.1,3.64485]
[1725728166781,1.69698,2288.5,2288.2,1.3614]
[1725728167384,0.43701,2288.4,2288.2,1.3614]
[1725728167778,2.15441,2288.4,2288.2,0.8905]
[1725728168785,1.7174,2288.4,2288.2,0.8905]
[1725728168980,0.437,2288.4,2288.2,0.8905]
[1725728169181,4.90479,2288.5,2288.2,0.8905]
[1725728169373,1.69699,2288.5,2288.2,0.8905]
[1725728169788,0.437,2288.4,2288.2,0.8905]
[1725728170478,0.43702,2288.3,2288.2,0.8905]
[1725728170673,0.89782,2288.3,2288.2,0.8905]
[1725728171686,0.4608,2288.3,2288.2,0.8905]
[1725728171876,0.89782,2288.3,2288.2,0.8905]
[1725728172686,0.43704,2288.2,2288.1,0.4709]
[1725728172881,0.4608,2288.3,2288.0,0.9119]
[1725728172882,0.89783,2288.3,2288.0,0.9119]
[1725728173083,0.43704,2288.2,2288.0,0.9119]
[1725728173679,0.89784,2288.3,2288.0,0.9119]
[1725728174377,0.43706,2288.1,2288.0,0.9119]
[1725728175684,0.43714,2287.7,2287.5,1.33338841]
[1725728175883,1.26,2287.8,2287.5,0.448]
[1725728176088,1.6971,2288.0,2287.5,3.6558]
[1725728176289,0.43709,2288.0,2287.7,0.43713]
[1725728176493,0.43709,2288.0,2287.8,0.4606]
[1725728176693,0.43706,2288.1,2287.9,0.448]
[1725728176889,0.43708,2288.0,2287.9,0.448]
[1725728177291,0.4608,2288.3,2287.9,0.448]
[1725728177491,0.89784,2288.3,2288.0,0.43707]
[1725728177701,0.43704,2288.2,2287.9,0.448]
[1725728178001,0.43704,2288.2,2287.9,0.88509]
[1725728178392,0.43706,2288.1,2287.9,0.88509]
[1725728178693,0.43705,2288.2,2287.9,0.88509]
[1725728178897,1.6936,2288.5,2288.1,0.43704]
[1725728179087,1.6936,2288.5,2288.2,0.4699]
[1725728179088,0.43703,2288.3,2288.2,0.4699]
[1725728180299,0.43702,2288.3,2288.2,0.4699]
[1725728180497,0.43701,2288.4,2288.2,0.4699]
[1725728180801,0.43698,2288.6,2288.3,0.43702]
[1725728181093,0.43698,2288.6,2288.4,0.4457]
[1725728181795,1.7164,2288.8,2288.4,0.4457]
[1725728182005,0.43698,2288.6,2288.4,0.4457]
[1725728182189,0.43696,2288.7,2288.4,0.4457]
[1725728182388,0.43694,2288.8,2288.4,5.35049]
[1725728182794,1.69692,2288.9,2288.5,0.43698]
[1725728182991,0.8743,2289.0,2288.6,0.89286]
[1725728183193,1.69688,2289.1,2288.7,3.64474]
[1725728183502,0.43689,2289.0,2288.7,3.2078]
[1725728183899,0.43691,2288.9,2288.7,3.2078]
[1725728184901,1.69688,2289.1,2288.8,4.3688]
[1725728185203,1.69688,2289.1,2288.9,0.4476]
[1725728185395,1.69688,2289.1,2289.0,0.433]
[1725728185903,2.13425,2289.3,2289.0,0.433]
[1725728186698,1.69682,2289.4,2289.0,4.07768]
[1725728187192,0.43682,2289.4,2289.0,5.33768]
[1725728187594,0.4368,2289.5,2289.1,0.43686]
[1725728187798,0.4676,2289.6,2289.3,0.43683]
[1725728188101,0.43677,2289.7,2289.4,0.4648]
[1725728188300,0.43677,2289.7,2289.5,0.4526]
[1725728188506,0.43677,2289.6,2289.5,0.4526]
[1725728189297,0.43676,2289.7,2289.5,0.4526]
[1725728189501,0.90432,2289.9,2289.5,0.88938]
[1725728190005,0.43672,2289.9,2289.6,0.43677]
[1725728190507,0.43674,2289.8,2289.5,0.88938]
[1725728190997,0.43673,2289.9,2289.5,0.88938]
[1725728191202,0.43673,2289.9,2289.6,0.43677]
[1725728191408,0.4525,2290.1,2289.6,3.2078]
[1725728191605,0.88918,2290.1,2289.8,0.43673]
[1725728191802,0.88918,2290.1,2289.9,0.4624]
[1725728192009,0.4367,2290.0,2289.9,0.4624]
[1725728192808,0.88919,2290.1,2289.9,0.4624]
[1725728193209,0.4367,2290.0,2289.9,0.4624]
[1725728193709,0.88919,2290.1,2289.9,0.4624]
[1725728194297,0.4367,2290.0,2289.9,0.4624]
[1725728195213,0.4525,2290.1,2289.9,0.4624]
[1725728195402,0.88918,2290.1,2289.9,0.4624]
[1725728196308,0.4525,2290.1,2289.9,0.4624]
[1725728197112,0.4525,2290.1,2290.0,0.4647]
[1725728197816,3.92555,2290.3,2290.0,0.4647]
[1725728198308,0.43667,2290.2,2290.0,0.4647]
[1725728198809,0.4371,2290.1,2290.0,0.4647]
[1725728200210,0.4371,2290.1,2289.9,0.4624]
[1725728203614,0.90555,2290.3,2289.9,0.89912]
[1725728203819,0.43666,2290.2,2290.0,0.4607]
[1725728204010,0.43666,2290.2,2289.9,0.4624]
[1725728204310,0.4541,2290.1,2289.9,0.4624]
[1725728204912,0.90555,2290.3,2289.9,0.89911]
[1725728205109,1.35965,2290.3,2289.9,0.89911]
[1725728205508,1.35965,2290.3,2290.0,0.4367]
[1725728205509,0.923,2290.3,2290.0,0.4367]
[1725728205706,0.4541,2290.3,2290.0,0.43668]
[1725728205906,0.89074,2290.3,2290.1,0.4568]
[1725728206415,0.4541,2290.3,2290.1,0.89347]
[1725728207312,0.9214,2290.6,2290.2,0.43666]
[1725728207313,0.43661,2290.5,2290.2,0.43666]
[1725728207517,0.4671,2290.5,2290.3,0.43663]
[1725728207709,0.43659,2290.6,2290.4,0.89072]
[1725728207903,1.26,2290.8,2290.5,0.4613]
[1725728208110,0.43656,2290.8,2290.5,0.8979]
[1725728208414,1.38214,2290.9,2290.5,0.8979]
[1725728208718,1.38214,2290.9,2290.6,0.4778]
[1725728209018,0.4671,2290.9,2290.6,0.4778]
[1725728209217,4.29894,2291.3,2291.0,0.4365]
[1725728209218,3.2078,2291.3,2291.0,0.4365]
[1725728209513,0.4671,2291.4,2291.1,0.43649]
[1725728209817,0.4671,2291.4,2291.1,2.63448]
[1725728210016,0.4671,2291.4,2291.1,0.938]
[1725728210217,0.43639,2291.7,2291.2,0.43646]
[1725728210412,0.43639,2291.6,2291.2,0.43646]
[1725728210812,0.4756,2291.7,2291.2,0.43646]
[1725728210813,0.91199,2291.7,2291.2,0.43646]
[1725728211117,0.91198,2291.7,2291.3,0.43645]
[1725728211322,0.91199,2291.7,2291.2,3.02]
[1725728212020,0.91199,2291.7,2291.3,0.43644]
[1725728212414,0.4756,2291.7,2291.3,0.43644]
[1725728212715,0.91198,2291.7,2291.3,0.43644]
[1725728213416,0.4364,2291.6,2291.1,4.84014807]
[1725728213819,0.91199,2291.7,2291.2,0.43646]
[1725728214624,0.91199,2291.7,2291.1,7.86014807]
[1725728214814,0.91199,2291.7,2291.2,0.43645]
[1725728215417,0.4756,2291.7,2291.1,7.86014807]
[1725728215622,3.6821,2291.9,2291.5,0.43641]
[1725728215623,0.43634,2291.9,2291.5,0.43641]
[1725728215817,0.43636,2291.8,2291.6,0.8365]
[1725728218416,0.43636,2291.8,2291.3,3.45644]
[1725728218617,0.4665,2291.7,2291.3,0.43644]
[1725728219719,3.2078,2292.0,2291.3,3.02]
[1725728219920,3.2078,2292.0,2291.5,0.4364]
[1725728220421,0.43634,2291.9,2291.5,0.4364]
[1725728220623,0.43634,2291.9,2291.4,0.43642]